[Event "*** Titled Tuesday Blitz"]
[Site "Chess.com"]
[Date "2021.02.02"]
[Round "4"]
[White "strelec64"]
[Black "francyIM"]
[Result "1-0"]
[WhiteElo "2505"]
[BlackElo "2645"]
[TimeControl "180+1"]
[EndTime "10:41:46 PST"]
[Termination "strelec64 won on time"]

1. d4 {[%clk 0:03:00.9]} 1... Nf6 {[%clk 0:02:56.2]} 2. Nf3 {[%clk 0:03:00.1]}
2... d6 {[%clk 0:02:53.5]} 3. g3 {[%clk 0:02:55.3]} 3... g6 {[%clk 0:02:54.4]}
4. Bg2 {[%clk 0:02:55.2]} 4... Bf5 {[%clk 0:02:51.3]} 5. O-O {[%clk 0:02:52.7]}
5... Bg7 {[%clk 0:02:44.9]} 6. c4 {[%clk 0:02:52.3]} 6... O-O {[%clk 0:02:43.9]}
7. Nc3 {[%clk 0:02:51.4]} 7... Ne4 {[%clk 0:02:42.4]} 8. Nd5 {[%clk 0:02:49.1]}
8... c6 {[%clk 0:02:40.1]} 9. Ne3 {[%clk 0:02:48.9]} 9... Bc8 {[%clk 0:02:39.1]}
10. b3 {[%clk 0:02:37.5]} 10... c5 {[%clk 0:02:36.1]} 11. Bb2 {[%clk 0:02:36.7]}
11... Nc6 {[%clk 0:02:34.1]} 12. Qd3 {[%clk 0:02:16.2]} 12... cxd4 {[%clk
0:02:29.7]} 13. Nxd4 {[%clk 0:02:12.7]} 13... Nc5 {[%clk 0:02:28.9]} 14. Qd2
{[%clk 0:02:08.4]} 14... Bd7 {[%clk 0:02:15.9]} 15. Nb5 {[%clk 0:01:53.9]} 15...
Ne5 {[%clk 0:02:04.1]} 16. Nc3 {[%clk 0:01:46.7]} 16... Bc6 {[%clk 0:02:03.1]}
17. Ned5 {[%clk 0:01:41.6]} 17... e6 {[%clk 0:01:41.1]} 18. Nf4 {[%clk 0:01:32]}
18... Bxg2 {[%clk 0:01:37.1]} 19. Nxg2 {[%clk 0:01:26.4]} 19... a6 {[%clk
0:01:33.7]} 20. Rfd1 {[%clk 0:01:25.2]} 20... Nc6 {[%clk 0:00:58.3]} 21. Qxd6
{[%clk 0:01:17]} 21... Qxd6 {[%clk 0:00:56.5]} 22. Rxd6 {[%clk 0:01:16.8]} 22...
Ne4 {[%clk 0:00:57.1]} 23. Nxe4 {[%clk 0:01:09.7]} 23... Bxb2 {[%clk 0:00:58]}
24. Rad1 {[%clk 0:01:03.6]} 24... Rad8 {[%clk 0:00:33.7]} 25. Rxd8 {[%clk
0:00:58.9]} 25... Rxd8 {[%clk 0:00:34.4]} 26. Rxd8+ {[%clk 0:00:58.5]} 26...
Nxd8 {[%clk 0:00:27.3]} 27. Nf4 {[%clk 0:00:50.5]} 27... Kf8 {[%clk 0:00:23.9]}
28. e3 {[%clk 0:00:47.1]} 28... Ba3 {[%clk 0:00:24.8]} 29. Kf1 {[%clk
0:00:44.7]} 29... Ke7 {[%clk 0:00:19.1]} 30. Ke2 {[%clk 0:00:44.3]} 30... h6
{[%clk 0:00:10.5]} 31. h4 {[%clk 0:00:42.6]} 31... f5 {[%clk 0:00:09.8]} 32. Nc3
{[%clk 0:00:39]} 32... g5 {[%clk 0:00:10.7]} 33. hxg5 {[%clk 0:00:37.7]} 33...
hxg5 {[%clk 0:00:04.5]} 34. Nd3 {[%clk 0:00:36.3]} 34... g4 {[%clk 0:00:05.4]}
35. Nf4 {[%clk 0:00:32.6]} 1-0

[Event "*** Titled Tuesday Blitz"]
[Site "Chess.com"]
[Date "2021.02.02"]
[Round "4"]
[White "NaciSAN"]
[Black "MattyDPerrine"]
[Result "1-0"]
[WhiteElo "2300"]
[BlackElo "2441"]
[TimeControl "180+1"]
[EndTime "10:41:46 PST"]
[Termination "NaciSAN won by resignation"]

1. e4 {[%clk 0:02:57.4]} 1... c5 {[%clk 0:03:00]} 2. Nf3 {[%clk 0:02:57.1]} 2...
e6 {[%clk 0:03:00.1]} 3. g3 {[%clk 0:02:54]} 3... Nc6 {[%clk 0:02:58.8]} 4. Bg2
{[%clk 0:02:54.1]} 4... Nf6 {[%clk 0:02:59.5]} 5. Nc3 {[%clk 0:02:53.6]} 5... d5
{[%clk 0:02:58.9]} 6. exd5 {[%clk 0:02:53.4]} 6... exd5 {[%clk 0:02:59.8]} 7.
O-O {[%clk 0:02:51.5]} 7... d4 {[%clk 0:02:57.7]} 8. Re1+ {[%clk 0:02:51.7]}
8... Be7 {[%clk 0:02:58.1]} 9. Ne4 {[%clk 0:02:51.5]} 9... Nxe4 {[%clk
0:02:57.8]} 10. Rxe4 {[%clk 0:02:52.4]} 10... O-O {[%clk 0:02:55.2]} 11. d3
{[%clk 0:02:52.2]} 11... Bf5 {[%clk 0:02:54.9]} 12. Re1 {[%clk 0:02:52.1]} 12...
Bd6 {[%clk 0:02:54.1]} 13. Nh4 {[%clk 0:02:40.1]} 13... Be6 {[%clk 0:02:48.2]}
14. Bd2 {[%clk 0:02:31.8]} 14... Qd7 {[%clk 0:02:40.2]} 15. a3 {[%clk
0:02:22.4]} 15... Rfe8 {[%clk 0:02:30.5]} 16. Qc1 {[%clk 0:02:21]} 16... h6
{[%clk 0:02:15.7]} 17. Bxh6 {[%clk 0:02:07.7]} 17... gxh6 {[%clk 0:02:14.9]} 18.
Qxh6 {[%clk 0:02:08.6]} 18... Bf8 {[%clk 0:02:10.1]} 19. Qh5 {[%clk 0:01:44.6]}
19... Bg4 {[%clk 0:01:56.8]} 20. Qg5+ {[%clk 0:01:44.9]} 20... Bg7 {[%clk
0:01:56.4]} 21. f3 {[%clk 0:01:39.7]} 21... Be6 {[%clk 0:01:50.7]} 22. f4 {[%clk
0:01:39.9]} 22... f5 {[%clk 0:01:30.4]} 23. g4 {[%clk 0:01:35.7]} 23... Qf7
{[%clk 0:00:23.3]} 24. gxf5 {[%clk 0:01:33.3]} 24... Bd5 {[%clk 0:00:09]} 25.
Bxd5 {[%clk 0:01:12.2]} 25... Qxd5 {[%clk 0:00:09.9]} 26. Kf2 {[%clk 0:00:58.8]}
26... Rxe1 {[%clk 0:00:08.8]} 27. Rxe1 {[%clk 0:00:57.7]} 27... Qf7 {[%clk
0:00:08.3]} 28. Rg1 {[%clk 0:00:56.7]} 28... Rf8 {[%clk 0:00:07.6]} 29. Ng6
{[%clk 0:00:52.1]} 29... Qf6 {[%clk 0:00:03.5]} 30. Nxf8 {[%clk 0:00:31.6]}
30... Qxg5 {[%clk 0:00:03.6]} 31. fxg5 {[%clk 0:00:25.4]} 31... Bxf8 {[%clk
0:00:03.4]} 32. Kf3 {[%clk 0:00:24.3]} 32... Kf7 {[%clk 0:00:02.8]} 33. Ke4
{[%clk 0:00:24.5]} 33... Ne7 {[%clk 0:00:03.2]} 34. h4 {[%clk 0:00:22.2]} 34...
Bg7 {[%clk 0:00:03.4]} 35. f6 {[%clk 0:00:20.7]} 35... Bxf6 {[%clk 0:00:04]} 36.
Rf1 {[%clk 0:00:19.1]} 36... Ng8 {[%clk 0:00:03.8]} 1-0

[Event "*** Titled Tuesday Blitz"]
[Site "Chess.com"]
[Date "2021.02.02"]
[Round "4"]
[White "Grammnik"]
[Black "HouseOfDurin"]
[Result "1-0"]
[WhiteElo "2393"]
[BlackElo "2110"]
[TimeControl "180+1"]
[EndTime "10:41:48 PST"]
[Termination "Grammnik won on time"]

1. d4 {[%clk 0:03:00.9]} 1... Nf6 {[%clk 0:02:59.1]} 2. c4 {[%clk 0:02:59.8]}
2... c5 {[%clk 0:02:59.7]} 3. d5 {[%clk 0:02:59.7]} 3... b5 {[%clk 0:03:00.3]}
4. Qc2 {[%clk 0:02:59.7]} 4... bxc4 {[%clk 0:02:59.8]} 5. e4 {[%clk 0:02:58.6]}
5... d6 {[%clk 0:02:59.3]} 6. Nf3 {[%clk 0:02:56.4]} 6... Nbd7 {[%clk
0:02:58.3]} 7. Bxc4 {[%clk 0:02:54.8]} 7... g6 {[%clk 0:02:58.7]} 8. h3 {[%clk
0:02:53.6]} 8... Bg7 {[%clk 0:02:59.2]} 9. O-O {[%clk 0:02:53.6]} 9... O-O
{[%clk 0:02:59.7]} 10. Re1 {[%clk 0:02:53.1]} 10... Ne8 {[%clk 0:02:53.7]} 11.
Nc3 {[%clk 0:02:51.7]} 11... Nc7 {[%clk 0:02:51.7]} 12. Bf4 {[%clk 0:02:50]}
12... Ba6 {[%clk 0:02:44]} 13. Bxa6 {[%clk 0:02:43.3]} 13... Nxa6 {[%clk
0:02:44.9]} 14. e5 {[%clk 0:02:43.7]} 14... Nxe5 {[%clk 0:02:42.1]} 15. Nxe5
{[%clk 0:02:43.3]} 15... dxe5 {[%clk 0:02:42.1]} 16. Bxe5 {[%clk 0:02:44.2]}
16... Nb4 {[%clk 0:02:37.7]} 17. Qd2 {[%clk 0:02:43.2]} 17... e6 {[%clk
0:02:04.4]} 18. Bxg7 {[%clk 0:02:40.7]} 18... Kxg7 {[%clk 0:02:05.3]} 19. d6
{[%clk 0:02:34.1]} 19... Nc6 {[%clk 0:01:54.6]} 20. Ne4 {[%clk 0:02:24.7]} 20...
Nd4 {[%clk 0:01:22.9]} 21. Rad1 {[%clk 0:02:09.4]} 21... e5 {[%clk 0:01:20]} 22.
Qc3 {[%clk 0:02:01]} 22... Rc8 {[%clk 0:01:13.5]} 23. Kh1 {[%clk 0:01:32.6]}
23... f5 {[%clk 0:00:58.9]} 24. Nxc5 {[%clk 0:01:31.5]} 24... Qxd6 {[%clk
0:00:59.1]} 25. b4 {[%clk 0:01:31.6]} 25... a5 {[%clk 0:00:57.5]} 26. a3 {[%clk
0:01:31]} 26... axb4 {[%clk 0:00:53.2]} 27. axb4 {[%clk 0:01:31.9]} 27... f4
{[%clk 0:00:28.2]} 28. Rxe5 {[%clk 0:01:31]} 28... Qxe5 {[%clk 0:00:24.7]} 29.
Rxd4 {[%clk 0:01:30.9]} 29... Rfe8 {[%clk 0:00:11.6]} 30. Rd7+ {[%clk
0:01:20.3]} 30... Kh6 {[%clk 0:00:05.6]} 31. Qf3 {[%clk 0:00:33.9]} 31... Qf5
{[%clk 0:00:02.5]} 32. Rd1 {[%clk 0:00:25.4]} 32... Re5 {[%clk 0:00:01.3]} 33.
Kh2 {[%clk 0:00:22.4]} 33... Rce8 {[%clk 0:00:01.8]} 34. Nd3 {[%clk 0:00:20]}
34... Re4 {[%clk 0:00:01.3]} 35. b5 {[%clk 0:00:19.3]} 1-0

[Event "*** Titled Tuesday Blitz"]
[Site "Chess.com"]
[Date "2021.02.02"]
[Round "4"]
[White "SanQui14"]
[Black "kamilianin235"]
[Result "1-0"]
[WhiteElo "2437"]
[BlackElo "2229"]
[TimeControl "180+1"]
[EndTime "10:41:49 PST"]
[Termination "SanQui14 won by checkmate"]

1. d4 {[%clk 0:03:00.9]} 1... d5 {[%clk 0:02:23.8]} 2. c4 {[%clk 0:02:58.8]}
2... dxc4 {[%clk 0:02:23.6]} 3. e3 {[%clk 0:02:57.7]} 3... Nf6 {[%clk 0:02:21]}
4. Nf3 {[%clk 0:02:56.2]} 4... e6 {[%clk 0:02:20.8]} 5. Bxc4 {[%clk 0:02:56.2]}
5... c5 {[%clk 0:02:20.1]} 6. O-O {[%clk 0:02:56]} 6... a6 {[%clk 0:02:19.7]} 7.
a4 {[%clk 0:02:55.1]} 7... Nc6 {[%clk 0:02:18.9]} 8. Nc3 {[%clk 0:02:54.8]} 8...
Be7 {[%clk 0:02:18]} 9. Qd3 {[%clk 0:02:45.9]} 9... O-O {[%clk 0:02:13.6]} 10.
Bb3 {[%clk 0:02:35.7]} 10... cxd4 {[%clk 0:02:11.7]} 11. exd4 {[%clk 0:02:35.6]}
11... Nb4 {[%clk 0:02:10.4]} 12. Qe2 {[%clk 0:02:32]} 12... b6 {[%clk
0:02:06.7]} 13. Bg5 {[%clk 0:02:28.3]} 13... Bb7 {[%clk 0:02:04.3]} 14. Rad1
{[%clk 0:02:25.8]} 14... Nfd5 {[%clk 0:01:58.8]} 15. Bxe7 {[%clk 0:02:17.1]}
15... Nxe7 {[%clk 0:01:57]} 16. Ne5 {[%clk 0:02:11.9]} 16... Nbd5 {[%clk
0:01:51.2]} 17. Bc2 {[%clk 0:02:05.2]} 17... Rc8 {[%clk 0:01:35.8]} 18. Rd3
{[%clk 0:01:57.5]} 18... Nf4 {[%clk 0:01:31.9]} 19. Qg4 {[%clk 0:01:48.7]} 19...
Nxd3 {[%clk 0:01:29.4]} 20. Bxd3 {[%clk 0:01:49.6]} 20... Ng6 {[%clk 0:01:28.5]}
21. Nxg6 {[%clk 0:01:39]} 21... hxg6 {[%clk 0:01:27.2]} 22. h4 {[%clk
0:01:39.9]} 22... Qf6 {[%clk 0:01:20]} 23. Re1 {[%clk 0:01:36.6]} 23... Rfd8
{[%clk 0:01:10.2]} 24. Re5 {[%clk 0:01:36.5]} 24... Rc7 {[%clk 0:01:07.2]} 25.
h5 {[%clk 0:01:32.9]} 25... gxh5 {[%clk 0:01:06.4]} 26. Qxh5 {[%clk 0:01:21.2]}
26... Rxd4 {[%clk 0:00:58.5]} 27. Re3 {[%clk 0:00:53.2]} 27... g6 {[%clk
0:00:54.3]} 28. Qh2 {[%clk 0:00:44]} 28... Rcd7 {[%clk 0:00:50.3]} 29. Qb8+
{[%clk 0:00:40.8]} 29... Kg7 {[%clk 0:00:48.7]} 30. Rh3 {[%clk 0:00:40.6]} 30...
Qd8 {[%clk 0:00:35.9]} 31. Qe5+ {[%clk 0:00:38.5]} 31... f6 {[%clk 0:00:35]} 32.
Qe3 {[%clk 0:00:21.4]} 32... g5 {[%clk 0:00:20.4]} 33. Rh7+ {[%clk 0:00:08.4]}
33... Kg8 {[%clk 0:00:20.3]} 34. Qxe6+ {[%clk 0:00:08.3]} 34... Kf8 {[%clk
0:00:19.2]} 35. Rh8+ {[%clk 0:00:08.7]} 35... Kg7 {[%clk 0:00:18.7]} 36. Rxd8
{[%clk 0:00:09]} 36... Rxd8 {[%clk 0:00:17]} 37. Qe7+ {[%clk 0:00:09.4]} 37...
Kh8 {[%clk 0:00:16.3]} 38. Qh7# {[%clk 0:00:09.2]} 1-0

[Event "*** Titled Tuesday Blitz"]
[Site "Chess.com"]
[Date "2021.02.02"]
[Round "4"]
[White "Murad_Ibrahimli"]
[Black "Mikhail_Golubev"]
[Result "1-0"]
[WhiteElo "2847"]
[BlackElo "2526"]
[TimeControl "180+1"]
[EndTime "10:41:50 PST"]
[Termination "Murad_Ibrahimli won by resignation"]

1. Nf3 {[%clk 0:03:00.9]} 1... d6 {[%clk 0:02:59.7]} 2. d4 {[%clk 0:02:58.6]}
2... Nf6 {[%clk 0:02:59.6]} 3. Bg5 {[%clk 0:02:56.1]} 3... Nbd7 {[%clk
0:02:58.1]} 4. c4 {[%clk 0:02:55.1]} 4... g6 {[%clk 0:02:50.7]} 5. Nc3 {[%clk
0:02:53.1]} 5... Bg7 {[%clk 0:02:51.1]} 6. e3 {[%clk 0:02:51.3]} 6... O-O {[%clk
0:02:48.8]} 7. Be2 {[%clk 0:02:50.5]} 7... e5 {[%clk 0:02:46.9]} 8. O-O {[%clk
0:02:49.9]} 8... Re8 {[%clk 0:02:42.7]} 9. Qc2 {[%clk 0:02:49]} 9... h6 {[%clk
0:02:31.8]} 10. Bh4 {[%clk 0:02:48.5]} 10... b6 {[%clk 0:02:30.4]} 11. b4 {[%clk
0:02:43.6]} 11... Bb7 {[%clk 0:02:29.1]} 12. d5 {[%clk 0:02:43.9]} 12... a5
{[%clk 0:02:26.3]} 13. a3 {[%clk 0:02:42.6]} 13... Bc8 {[%clk 0:02:10.7]} 14.
Nd2 {[%clk 0:02:37.5]} 14... Nf8 {[%clk 0:02:00.1]} 15. Nb3 {[%clk 0:02:29.3]}
15... e4 {[%clk 0:01:44]} 16. Nd4 {[%clk 0:02:22.3]} 16... Bd7 {[%clk
0:01:41.7]} 17. Nxe4 {[%clk 0:01:58.6]} 17... g5 {[%clk 0:01:33.7]} 18. Nxf6+
{[%clk 0:01:57.1]} 18... Bxf6 {[%clk 0:01:26.7]} 19. Bg3 {[%clk 0:01:57.3]}
19... Ng6 {[%clk 0:01:22.8]} 20. h3 {[%clk 0:01:51.5]} 20... Bxd4 {[%clk
0:01:13.2]} 21. exd4 {[%clk 0:01:49.9]} 21... Qf6 {[%clk 0:01:13.8]} 22. Qd2
{[%clk 0:01:41]} 22... Re4 {[%clk 0:00:54.6]} 23. Rad1 {[%clk 0:01:18.5]} 23...
axb4 {[%clk 0:00:53.8]} 24. axb4 {[%clk 0:01:13.7]} 24... Nf4 {[%clk 0:00:52.9]}
25. Rfe1 {[%clk 0:00:44.8]} 25... Rae8 {[%clk 0:00:35.2]} 26. Bf1 {[%clk
0:00:44.2]} 26... Kg7 {[%clk 0:00:20.8]} 27. Rxe4 {[%clk 0:00:42.1]} 27... Rxe4
{[%clk 0:00:21.5]} 28. f3 {[%clk 0:00:41.1]} 28... Re8 {[%clk 0:00:20.4]} 29.
Bf2 {[%clk 0:00:41.3]} 29... h5 {[%clk 0:00:19]} 30. Re1 {[%clk 0:00:39.3]}
30... Rxe1 {[%clk 0:00:16.6]} 31. Qxe1 {[%clk 0:00:39.2]} 31... h4 {[%clk
0:00:16.8]} 32. b5 {[%clk 0:00:37.9]} 32... Bf5 {[%clk 0:00:15.8]} 33. Qe3
{[%clk 0:00:28.3]} 33... Bg6 {[%clk 0:00:15.3]} 34. Qb3 {[%clk 0:00:24.6]} 34...
Qf5 {[%clk 0:00:14.7]} 35. c5 {[%clk 0:00:24.1]} 35... Nd3 {[%clk 0:00:12.5]}
36. Be3 {[%clk 0:00:20.1]} 36... bxc5 {[%clk 0:00:11.9]} 37. dxc5 {[%clk
0:00:20.2]} 37... Nxc5 {[%clk 0:00:11.3]} 38. Qc3+ {[%clk 0:00:20.5]} 38... Qf6
{[%clk 0:00:10.8]} 39. Bd4 {[%clk 0:00:20.8]} 1-0

[Event "*** Titled Tuesday Blitz"]
[Site "Chess.com"]
[Date "2021.02.02"]
[Round "4"]
[White "Iskusnyh"]
[Black "ShahMatKanal"]
[Result "0-1"]
[WhiteElo "2608"]
[BlackElo "2486"]
[TimeControl "180+1"]
[EndTime "10:41:50 PST"]
[Termination "ShahMatKanal won on time"]

1. d4 {[%clk 0:03:00.9]} 1... d5 {[%clk 0:02:57.8]} 2. c4 {[%clk 0:03:00.4]}
2... e6 {[%clk 0:02:57.4]} 3. Nf3 {[%clk 0:02:59.4]} 3... Nf6 {[%clk 0:02:57.1]}
4. g3 {[%clk 0:02:59.8]} 4... Be7 {[%clk 0:02:56.3]} 5. Bg2 {[%clk 0:03:00.3]}
5... O-O {[%clk 0:02:56.5]} 6. O-O {[%clk 0:03:01]} 6... c6 {[%clk 0:02:53]} 7.
Qc2 {[%clk 0:02:58.7]} 7... b6 {[%clk 0:02:51.8]} 8. Rd1 {[%clk 0:02:52.9]} 8...
Bb7 {[%clk 0:02:49.4]} 9. b3 {[%clk 0:02:45.2]} 9... Nbd7 {[%clk 0:02:45.6]} 10.
Nc3 {[%clk 0:02:45.5]} 10... Rc8 {[%clk 0:02:44.8]} 11. e4 {[%clk 0:02:45.3]}
11... a5 {[%clk 0:02:36.1]} 12. Bb2 {[%clk 0:02:37.7]} 12... Qc7 {[%clk
0:02:34.2]} 13. Rac1 {[%clk 0:02:34.3]} 13... Qb8 {[%clk 0:02:34.1]} 14. Qb1
{[%clk 0:02:22.5]} 14... Rfd8 {[%clk 0:02:24.9]} 15. Re1 {[%clk 0:02:07.4]}
15... Bb4 {[%clk 0:02:18.9]} 16. e5 {[%clk 0:02:00.8]} 16... Bxc3 {[%clk
0:02:04]} 17. Bxc3 {[%clk 0:01:47.9]} 17... Ne4 {[%clk 0:02:03.3]} 18. Rxe4
{[%clk 0:01:39.5]} 18... dxe4 {[%clk 0:02:03]} 19. Ng5 {[%clk 0:01:36]} 19... c5
{[%clk 0:01:54.5]} 20. Bxe4 {[%clk 0:01:35.5]} 20... Bxe4 {[%clk 0:01:54.4]} 21.
Qxe4 {[%clk 0:01:35]} 21... Nf8 {[%clk 0:01:54.4]} 22. d5 {[%clk 0:01:34.2]}
22... h6 {[%clk 0:01:40.6]} 23. Nh3 {[%clk 0:01:31.6]} 23... Qa8 {[%clk
0:01:10.6]} 24. Nf4 {[%clk 0:01:25.4]} 24... a4 {[%clk 0:01:10.3]} 25. Rd1
{[%clk 0:01:23.4]} 25... axb3 {[%clk 0:01:10.2]} 26. axb3 {[%clk 0:01:23.2]}
26... Qa2 {[%clk 0:00:50]} 27. Rb1 {[%clk 0:01:06.3]} 27... b5 {[%clk
0:00:39.9]} 28. dxe6 {[%clk 0:00:49.1]} 28... fxe6 {[%clk 0:00:30.3]} 29. cxb5
{[%clk 0:00:46.4]} 29... c4 {[%clk 0:00:28.9]} 30. b4 {[%clk 0:00:42.6]} 30...
Rd3 {[%clk 0:00:24.5]} 31. Ra1 {[%clk 0:00:15.9]} 31... Qc2 {[%clk 0:00:16.9]}
32. Be1 {[%clk 0:00:13.9]} 32... Rxg3+ {[%clk 0:00:16.1]} 33. hxg3 {[%clk
0:00:12.7]} 33... Qxe4 {[%clk 0:00:16.6]} 0-1

[Event "*** Titled Tuesday Blitz"]
[Site "Chess.com"]
[Date "2021.02.02"]
[Round "4"]
[White "ChessFighter1975"]
[Black "Virgo15"]
[Result "1/2-1/2"]
[WhiteElo "2426"]
[BlackElo "2600"]
[TimeControl "180+1"]
[EndTime "10:41:50 PST"]
[Termination "Game drawn by repetition"]

1. d4 {[%clk 0:02:51.3]} 1... Nf6 {[%clk 0:02:58.9]} 2. c4 {[%clk 0:02:50.7]}
2... c5 {[%clk 0:02:59]} 3. d5 {[%clk 0:02:50.4]} 3... e6 {[%clk 0:02:59.4]} 4.
Nc3 {[%clk 0:02:50]} 4... exd5 {[%clk 0:02:59.8]} 5. cxd5 {[%clk 0:02:50.9]}
5... d6 {[%clk 0:03:00.1]} 6. e4 {[%clk 0:02:51.4]} 6... a6 {[%clk 0:02:59.7]}
7. f4 {[%clk 0:02:51.1]} 7... g6 {[%clk 0:02:56.2]} 8. e5 {[%clk 0:02:50.8]}
8... Bg4 {[%clk 0:02:43.6]} 9. Be2 {[%clk 0:02:07.4]} 9... Bxe2 {[%clk
0:02:42.2]} 10. Ngxe2 {[%clk 0:02:08.3]} 10... Nh5 {[%clk 0:02:38.4]} 11. e6
{[%clk 0:01:54.2]} 11... f5 {[%clk 0:02:34.8]} 12. O-O {[%clk 0:01:46.8]} 12...
b5 {[%clk 0:02:33.7]} 13. g4 {[%clk 0:01:40.1]} 13... Nf6 {[%clk 0:02:29.5]} 14.
gxf5 {[%clk 0:01:34.3]} 14... gxf5 {[%clk 0:02:28.5]} 15. Ng3 {[%clk 0:01:34.6]}
15... Rg8 {[%clk 0:02:27.4]} 16. Kh1 {[%clk 0:01:33.1]} 16... Rxg3 {[%clk
0:02:22.1]} 17. hxg3 {[%clk 0:01:32.8]} 17... Ng4 {[%clk 0:02:22.4]} 18. Ne4
{[%clk 0:01:11.1]} 18... Ra7 {[%clk 0:02:07.7]} 19. Kg2 {[%clk 0:00:47.4]} 19...
Rg7 {[%clk 0:02:05.1]} 20. Ng5 {[%clk 0:00:41]} 20... Qf6 {[%clk 0:01:59.4]} 21.
a4 {[%clk 0:00:33.6]} 21... b4 {[%clk 0:01:55.6]} 22. Ra2 {[%clk 0:00:31]} 22...
Qg6 {[%clk 0:01:28.2]} 23. Qd3 {[%clk 0:00:26.9]} 23... Be7 {[%clk 0:01:23.7]}
24. Rh1 {[%clk 0:00:19.9]} 24... h5 {[%clk 0:01:18.5]} 25. b3 {[%clk 0:00:19.2]}
25... Bxg5 {[%clk 0:01:04.7]} 26. fxg5 {[%clk 0:00:20.1]} 26... Ne5 {[%clk
0:01:04]} 27. Qe2 {[%clk 0:00:17.4]} 27... Kd8 {[%clk 0:00:45.2]} 28. Bf4 {[%clk
0:00:17.4]} 28... Ng4 {[%clk 0:00:30]} 29. Bxd6 {[%clk 0:00:17.2]} 29... Kc8
{[%clk 0:00:29.8]} 30. Bxb8 {[%clk 0:00:16.5]} 30... Kxb8 {[%clk 0:00:29.1]} 31.
Qxa6 {[%clk 0:00:15.5]} 31... Ne3+ {[%clk 0:00:22.3]} 32. Kf3 {[%clk 0:00:12.3]}
32... Qxg5 {[%clk 0:00:22.3]} 33. Qb6+ {[%clk 0:00:12.5]} 33... Ka8 {[%clk
0:00:21.7]} 34. Qc6+ {[%clk 0:00:11.4]} 34... Kb8 {[%clk 0:00:20.8]} 35. Qd6+
{[%clk 0:00:11.2]} 35... Ka8 {[%clk 0:00:17.2]} 36. Qc6+ {[%clk 0:00:11.1]}
36... Kb8 {[%clk 0:00:15.8]} 37. Qd6+ {[%clk 0:00:11.2]} 37... Ka8 {[%clk
0:00:15.9]} 38. Qc6+ {[%clk 0:00:11]} 1/2-1/2

[Event "*** Titled Tuesday Blitz"]
[Site "Chess.com"]
[Date "2021.02.02"]
[Round "4"]
[White "OMGCovid-19"]
[Black "ZenBull"]
[Result "0-1"]
[WhiteElo "1961"]
[BlackElo "2232"]
[TimeControl "180+1"]
[EndTime "10:41:51 PST"]
[Termination "ZenBull won on time"]

1. e4 {[%clk 0:03:00.9]} 1... c5 {[%clk 0:02:59.7]} 2. Nc3 {[%clk 0:03:00]} 2...
a6 {[%clk 0:02:57.3]} 3. Nf3 {[%clk 0:02:53]} 3... Nc6 {[%clk 0:02:56.8]} 4. d4
{[%clk 0:02:52.2]} 4... cxd4 {[%clk 0:02:57]} 5. Nxd4 {[%clk 0:02:52.6]} 5... e6
{[%clk 0:02:50.5]} 6. Be3 {[%clk 0:02:41.2]} 6... Qc7 {[%clk 0:02:49.5]} 7. Nxc6
{[%clk 0:02:36.3]} 7... Qxc6 {[%clk 0:02:40.5]} 8. Bd3 {[%clk 0:02:36.8]} 8...
b5 {[%clk 0:02:38.4]} 9. O-O {[%clk 0:02:34.4]} 9... Bb7 {[%clk 0:02:36.9]} 10.
f4 {[%clk 0:02:31.9]} 10... Bc5 {[%clk 0:02:36.3]} 11. Bxc5 {[%clk 0:02:29.3]}
11... Qxc5+ {[%clk 0:02:37]} 12. Kh1 {[%clk 0:02:29.4]} 12... Ne7 {[%clk
0:02:36.8]} 13. Qg4 {[%clk 0:02:23.1]} 13... g6 {[%clk 0:02:33.3]} 14. Rae1
{[%clk 0:02:18.3]} 14... h5 {[%clk 0:02:12.8]} 15. Qh4 {[%clk 0:02:16.4]} 15...
O-O-O {[%clk 0:02:02]} 16. a4 {[%clk 0:01:40]} 16... b4 {[%clk 0:02:00.1]} 17.
Ne2 {[%clk 0:01:39.3]} 17... d5 {[%clk 0:01:53.1]} 18. c3 {[%clk 0:01:35]} 18...
dxe4 {[%clk 0:01:44.8]} 19. cxb4 {[%clk 0:01:34.4]} 19... Qxb4 {[%clk
0:01:42.8]} 20. Bc4 {[%clk 0:01:00.1]} 20... Nf5 {[%clk 0:01:36.5]} 21. Qf6
{[%clk 0:00:44.5]} 21... Nd6 {[%clk 0:01:25.2]} 22. Rc1 {[%clk 0:00:32]} 22...
Kb8 {[%clk 0:01:25.2]} 23. b3 {[%clk 0:00:26.2]} 23... h4 {[%clk 0:01:15.4]} 24.
Rfd1 {[%clk 0:00:25]} 24... h3 {[%clk 0:01:12]} 25. g3 {[%clk 0:00:21]} 25...
Rhf8 {[%clk 0:00:51.4]} 26. Kg1 {[%clk 0:00:20.8]} 26... Qb6+ {[%clk 0:00:49.5]}
27. Kf1 {[%clk 0:00:20]} 27... Nf5 {[%clk 0:00:46.9]} 28. Rxd8+ {[%clk
0:00:17.7]} 28... Qxd8 {[%clk 0:00:37.3]} 29. Qxd8+ {[%clk 0:00:17]} 29... Rxd8
{[%clk 0:00:36.8]} 30. Nc3 {[%clk 0:00:16.7]} 30... Rd2 {[%clk 0:00:32.4]} 31.
Be2 {[%clk 0:00:12]} 31... Nd4 {[%clk 0:00:28.2]} 32. Rd1 {[%clk 0:00:11.2]}
32... Rxd1+ {[%clk 0:00:26.7]} 33. Bxd1 {[%clk 0:00:10.3]} 33... Kc7 {[%clk
0:00:26]} 34. Ne2 {[%clk 0:00:09.3]} 34... Nf3 {[%clk 0:00:25.8]} 35. Kf2 {[%clk
0:00:02.8]} 35... Nxh2 {[%clk 0:00:25.8]} 36. Nc3 {[%clk 0:00:02.7]} 36... Nf3
{[%clk 0:00:23.9]} 37. Bxf3 {[%clk 0:00:02.3]} 37... exf3 {[%clk 0:00:24.2]} 38.
Nb1 {[%clk 0:00:01.6]} 38... h2 {[%clk 0:00:24.5]} 0-1